bitfinex/quotes_BTCUSD_20251009
["timestamp","ask_amount","ask_price","bid_price","bid_amount"]
[1760023889887,1.08093743,121050.0,121040.0,0.23884]
[1760023890740,1.08093743,121050.0,121040.0,0.29596]
[1760023890956,0.54570732,121050.0,121040.0,0.29596]
[1760023891169,0.36410584,121050.0,121040.0,0.10257]
[1760023891377,0.89933595,121050.0,121040.0,0.33937]
[1760023891566,0.36410584,121050.0,121040.0,0.33937]
[1760023891842,0.36410584,121050.0,121040.0,0.41897]
[1760023892279,0.53006682,121050.0,121040.0,0.33929]
[1760023892905,1.06602693,121050.0,121040.0,0.33929]
[1760023893344,1.06602693,121050.0,121040.0,0.10257]
[1760023893557,1.06602693,121050.0,121040.0,0.33929]
[1760023894171,1.06602693,121050.0,121040.0,0.10257]
[1760023894372,0.53079682,121050.0,121040.0,0.33925]
[1760023894589,0.5925419,121050.0,121040.0,0.23868]
[1760023894799,1.20060201,121050.0,121040.0,0.002]
[1760023895002,1.35134094,121050.0,121040.0,0.002]
[1760023895211,1.30682276,121050.0,121040.0,0.002]
[1760023895622,1.54350276,121050.0,121040.0,0.001]
[1760023895860,0.16523463,121040.0,121030.0,0.13644]
[1760023896101,0.9553363,121040.0,121030.0,0.13644]
[1760023896316,0.50525269,121030.0,121010.0,0.20868112]
[1760023896615,0.38905383,121030.0,121020.0,0.23664]
[1760023896766,0.35780383,121030.0,121020.0,0.12305]
[1760023896971,0.35780383,121030.0,121020.0,0.41681]
[1760023897184,0.35780383,121030.0,121020.0,0.58207194]
[1760023897984,0.35780383,121030.0,121020.0,0.41677]
[1760023898163,0.41337472,121030.0,121020.0,0.33717]
[1760023898375,0.646143,121030.0,121020.0,0.33717]
[1760023898588,0.646143,121030.0,121020.0,0.33817]
[1760023898792,0.40032383,121030.0,121020.0,0.33817]
[1760023899208,0.36405383,121030.0,121020.0,0.33917]
[1760023899867,0.36405383,121030.0,121020.0,0.58478194]
[1760023900068,0.36405383,121030.0,121020.0,0.41952]
[1760023900494,0.34625,121030.0,121020.0,0.41952]
[1760023900703,0.95325511,121050.0,121020.0,0.41952]
[1760023900704,0.18932991,121050.0,121020.0,0.34818194]
[1760023900908,0.74235178,121050.0,121030.0,0.11994]
[1760023901109,1.08235178,121050.0,121040.0,0.23652]
[1760023901317,0.54788167,121050.0,121040.0,0.23652]
[1760023901534,0.62271167,121050.0,121040.0,0.23652]
[1760023901742,1.15794178,121050.0,121040.0,0.23652]
[1760023901953,1.15794178,121050.0,121040.0,0.17618]
[1760023901954,0.3579976,121050.0,121040.0,0.17618]
[1760023902159,0.3587576,121050.0,121040.0,0.09583]
[1760023902382,0.54764858,121050.0,121040.0,0.33243]
[1760023904342,0.52985682,121050.0,121040.0,0.33243]
[1760023904546,0.52985682,121050.0,121040.0,0.27619]
[1760023905196,0.54764824,121050.0,121040.0,0.2366]
[1760023905412,0.16523463,121040.0,121030.0,0.00138081]
[1760023905632,0.73145474,121040.0,121030.0,0.23786081]
[1760023905855,0.80805474,121040.0,121030.0,0.23786081]
[1760023906086,0.80805474,121040.0,121030.0,0.00138081]
[1760023906300,0.27282463,121040.0,121030.0,0.23786081]
[1760023906528,1.37703908,121040.0,121000.0,0.48133248]
[1760023906784,1.0405057,121010.0,121000.0,0.44167248]
[1760023906998,1.1859257,121010.0,121000.0,0.44167248]
[1760023907226,1.20372721,121010.0,121000.0,0.67855248]
[1760023908046,1.20372721,121010.0,121000.0,0.44217861]
[1760023908430,1.20372721,121010.0,121000.0,0.67901861]
[1760023908639,1.28684927,121010.0,121000.0,0.44217861]
[1760023908841,1.40048704,121010.0,121000.0,0.44317861]
[1760023909626,1.40048704,121010.0,121000.0,0.67997861]
[1760023910369,1.31736498,121010.0,121000.0,0.44317861]
[1760023910787,0.78213487,121010.0,121000.0,0.67993861]
[1760023910997,1.31736498,121010.0,121000.0,0.67993861]
[1760023912005,1.31736498,121010.0,121000.0,0.44317861]
[1760023912222,1.31736498,121010.0,121000.0,0.68001861]
[1760023912420,1.31736498,121010.0,121000.0,0.68156979]
[1760023912664,1.37920761,121010.0,121000.0,0.68156979]
[1760023913221,1.37920761,121010.0,121000.0,0.44472979]
[1760023913448,1.37920761,121010.0,121000.0,0.68152979]
[1760023913665,1.37920761,121010.0,121000.0,0.44472979]
[1760023913894,1.37920761,121010.0,121000.0,0.68152979]
[1760023914459,1.37920761,121010.0,121000.0,0.68148979]
[1760023915466,1.37920761,121010.0,121000.0,0.44472979]
[1760023915651,1.37920761,121010.0,121000.0,0.68148979]
[1760023916104,1.37920761,121010.0,121000.0,0.44472979]
[1760023916314,1.37920761,121010.0,121000.0,0.68144979]
[1760023916540,0.8439775,121010.0,121000.0,0.68144979]
[1760023916958,1.37920761,121010.0,121000.0,0.68144979]
[1760023917369,0.06583248,121010.0,121000.0,0.53712979]
[1760023917581,0.11866248,121010.0,121000.0,0.53712979]
[1760023917789,0.06583248,121010.0,121000.0,1.02222904]
[1760023917988,0.06583248,121010.0,121000.0,0.77388979]
[1760023917989,0.11866248,121010.0,121000.0,0.77388979]
[1760023918128,0.11866248,121010.0,121000.0,0.93917904]
[1760023918336,0.06583248,121010.0,121000.0,0.93917904]
[1760023918537,0.06583248,121010.0,121000.0,0.93925904]
[1760023918754,0.06583248,121010.0,121000.0,1.02517904]
[1760023918951,0.06583248,121010.0,121000.0,1.10822904]
[1760023919191,0.06583248,121010.0,121000.0,1.02517904]
[1760023919395,0.06583248,121010.0,121000.0,0.85988979]
[1760023919600,0.06583248,121010.0,121000.0,1.02517904]
[1760023920433,0.05144248,121010.0,121000.0,1.10822904]
[1760023921293,0.06583248,121010.0,121000.0,0.85980979]
[1760023921508,0.06583248,121010.0,121000.0,0.93913904]
[1760023921644,0.05144248,121010.0,121000.0,1.10810904]
[1760023922298,0.0275,121030.0,121020.0,0.16526194]
[1760023922507,0.01774391,121030.0,121020.0,0.57739194]
[1760023922918,0.01774391,121030.0,121020.0,0.660514]
[1760023923194,0.05116536,121030.0,121020.0,0.660514]
[1760023924833,0.01774391,121030.0,121020.0,0.661714]
[1760023925178,0.01774391,121030.0,121020.0,0.662674]
[1760023925376,0.00158655,121050.0,121040.0,0.16523463]
[1760023925580,0.01933612,121050.0,121040.0,0.50972669]
[1760023925806,0.01933612,121050.0,121040.0,0.74660669]
[1760023926004,0.01933612,121050.0,121040.0,0.50972669]
[1760023926287,0.01933612,121050.0,121040.0,1.08672669]
[1760023926497,0.01933612,121050.0,121040.0,0.84972669]
[1760023926709,0.00171193,121050.0,121040.0,1.11687859]
[1760023927147,0.00171193,121050.0,121040.0,0.87987859]
[1760023927354,0.00171193,121050.0,121040.0,0.91378339]
[1760023927583,0.00171193,121050.0,121040.0,1.15178339]
[1760023927806,0.00171193,121050.0,121040.0,1.25854339]
[1760023928008,0.00171193,121050.0,121040.0,1.49554339]
[1760023928660,0.00171193,121050.0,121040.0,1.49650339]
[1760023929071,0.00171193,121050.0,121040.0,1.49642339]
[1760023929404,0.00171193,121050.0,121040.0,1.41050339]
[1760023929660,0.00171193,121050.0,121040.0,1.49642339]
[1760023929863,0.00171193,121050.0,121040.0,0.82986339]
[1760023930071,0.00171193,121050.0,121040.0,1.49638339]
[1760023931059,0.00171193,121050.0,121040.0,0.82986339]
[1760023931259,0.00171193,121050.0,121040.0,0.76580669]
[1760023931490,0.00171193,121050.0,121040.0,1.19544669]
[1760023931703,0.00171193,121050.0,121040.0,1.43232669]
[1760023931900,0.00171193,121050.0,121040.0,1.43132669]
[1760023932100,0.00171193,121050.0,121040.0,1.34532669]
[1760023932328,0.00171193,121050.0,121040.0,1.19540669]
[1760023932551,0.00171193,121050.0,121040.0,0.76480669]
[1760023932767,0.00171193,121050.0,121040.0,1.43124669]
[1760023932954,0.00171193,121050.0,121040.0,1.43024669]
[1760023933154,0.00171193,121050.0,121040.0,1.19440669]
[1760023933405,0.00171193,121050.0,121040.0,1.43120669]
[1760023933610,0.00171193,121050.0,121040.0,1.19540669]
[1760023933838,0.00171193,121050.0,121040.0,1.19440669]
[1760023934063,0.00171193,121050.0,121040.0,1.19540669]
[1760023934201,0.00171193,121050.0,121040.0,1.43216669]
[1760023934643,0.00171193,121050.0,121040.0,1.19540669]
[1760023935109,0.00171193,121050.0,121040.0,1.43212669]
[1760023935318,0.00171193,121050.0,121040.0,0.76580669]
[1760023935495,0.00171193,121050.0,121040.0,0.51172669]
[1760023935721,0.00171193,121050.0,121040.0,0.74844669]
[1760023936262,0.00171193,121050.0,121040.0,0.74644669]
[1760023936490,0.00171193,121050.0,121040.0,0.42380669]
[1760023936668,0.00171193,121050.0,121040.0,0.66052669]
[1760023936893,0.03466087,121050.0,121040.0,0.74640669]
[1760023937832,0.05971087,121050.0,121040.0,0.66331669]
[1760023938184,0.03466087,121050.0,121040.0,0.74044669]
[1760023938395,0.03466087,121050.0,121040.0,0.74144669]
[1760023938646,0.03466087,121050.0,121040.0,0.74044669]
[1760023938861,0.03466087,121050.0,121040.0,0.50376669]
[1760023939081,0.03466087,121050.0,121040.0,0.74092669]
[1760023939301,0.06029087,121050.0,121040.0,0.32956]
[1760023939532,0.06029087,121050.0,121040.0,0.58067463]
[1760023939763,0.05946087,121050.0,121040.0,0.25763463]
[1760023939988,0.06053087,121050.0,121040.0,0.41544]
[1760023940223,0.05946087,121050.0,121040.0,0.25763463]
[1760023940453,0.05946087,121050.0,121040.0,0.58063463]
[1760023940930,0.12876109,121050.0,121040.0,0.0924]
[1760023941159,0.06053087,121050.0,121040.0,0.41536]
[1760023941394,0.05946087,121050.0,121040.0,0.58059463]
[1760023942111,0.05946087,121050.0,121040.0,0.66011463]
[1760023942340,0.06585087,121050.0,121040.0,0.20489463]
[1760023942558,0.5733645,121050.0,121040.0,0.32292]
[1760023942996,0.4961345,121050.0,121040.0,0.32292]
[1760023943225,0.06585087,121050.0,121040.0,0.32292]
[1760023943445,0.06585087,121050.0,121040.0,0.37817]
[1760023944089,0.06585087,121050.0,121040.0,0.58503463]
[1760023944499,0.06585087,121050.0,121040.0,0.4198]
[1760023945626,0.06585087,121050.0,121040.0,0.58503463]
[1760023946121,0.23107185,121050.0,121040.0,0.4198]
[1760023946339,0.06585087,121050.0,121040.0,0.4198]
[1760023946594,0.06585087,121050.0,121040.0,0.58503463]
[1760023947661,0.06585087,121050.0,121040.0,0.4198]
[1760023948693,0.06585087,121050.0,121040.0,0.58503463]
[1760023949151,0.06585087,121050.0,121040.0,0.34779463]
[1760023949381,0.03466087,121050.0,121040.0,0.66439463]
[1760023950314,0.05241313,121050.0,121040.0,0.66431463]
[1760023950531,0.24710411,121050.0,121040.0,0.33384]
[1760023950748,0.08188313,121050.0,121040.0,0.41976]
[1760023950961,0.75482871,121050.0,121040.0,0.08592]
[1760023951170,0.08188313,121050.0,121040.0,0.37813]
[1760023951378,0.51216676,121050.0,121040.0,0.09668]
[1760023951610,0.05241313,121050.0,121040.0,0.66451463]
[1760023951821,0.05241313,121050.0,121040.0,0.3338]
[1760023952042,0.08188313,121050.0,121040.0,0.41972]
[1760023952292,0.07951313,121050.0,121040.0,0.58495463]
[1760023952512,0.07951313,121050.0,121040.0,0.66447463]
[1760023952734,0.05241313,121050.0,121040.0,0.66447463]
[1760023955125,0.05241313,121050.0,121040.0,0.34143463]
[1760023955334,0.08188313,121050.0,121040.0,0.4196]
[1760023955498,0.07951313,121050.0,121040.0,0.58483463]
[1760023955662,0.07951313,121050.0,121040.0,0.66435463]
[1760023955866,0.08213313,121050.0,121040.0,0.58483463]
[1760023956075,0.3848533,121050.0,121040.0,0.58483463]
[1760023956527,0.01946419,121050.0,121040.0,0.51047669]
[1760023956967,0.01946419,121050.0,121040.0,0.74739669]
[1760023957367,0.01946419,121050.0,121040.0,0.42455669]
[1760023957574,0.32604436,121050.0,121040.0,0.66787669]
[1760023957784,0.02332419,121050.0,121040.0,0.34503669]
[1760023957956,0.32218436,121050.0,121040.0,0.58471463]
[1760023958129,0.32218436,121050.0,121040.0,0.58571463]
[1760023958342,0.01946419,121050.0,121040.0,0.34143463]
[1760023958551,0.35367436,121050.0,121040.0,0.58471463]
[1760023958750,0.35367436,121050.0,121040.0,0.58571463]
[1760023958952,0.386446,121050.0,121040.0,0.58571463]
[1760023959160,0.386446,121050.0,121040.0,0.58471463]
[1760023959393,0.386446,121050.0,121040.0,0.34783463]
[1760023959883,0.386446,121050.0,121040.0,0.58471463]
[1760023960069,0.08372583,121050.0,121040.0,0.58471463]
[1760023960884,0.08372583,121050.0,121040.0,0.26191463]
[1760023960885,0.10585377,121050.0,121040.0,0.26191463]
[1760023961211,0.08372583,121050.0,121040.0,0.48803463]
[1760023961416,0.10585377,121050.0,121040.0,0.57954463]
[1760023961619,0.10585377,121050.0,121030.0,0.03966]
[1760023961620,0.77384598,121050.0,121030.0,0.03966]
[1760023961822,0.61090837,121040.0,121030.0,0.08592]
[1760023962020,0.463426,121040.0,121030.0,0.27]
[1760023962193,0.03826226,121040.0,121030.0,0.48878828]
[1760023962402,0.03340226,121040.0,121030.0,0.60997828]
[1760023962634,0.03826226,121040.0,121030.0,0.57951828]
[1760023962844,0.03826226,121040.0,121030.0,0.57947828]
[1760023963261,0.28349369,121040.0,121030.0,0.41423]
[1760023963471,0.20349689,121040.0,121030.0,0.41423]
[1760023963689,0.20349689,121040.0,121030.0,0.09151]
[1760023963854,0.03826226,121040.0,121030.0,0.57947828]
[1760023964471,0.01775226,121040.0,121030.0,0.42589828]
[1760023964674,0.01775226,121040.0,121030.0,0.66269828]
[1760023964876,0.04493226,121040.0,121030.0,0.57947828]
[1760023965281,0.04493226,121040.0,121030.0,0.34267828]
[1760023965626,0.04365226,121040.0,121030.0,0.65691828]
[1760023966265,0.01775226,121040.0,121030.0,0.65687828]
[1760023969538,0.01775226,121040.0,121030.0,0.49163]
[1760023969852,0.01775226,121040.0,121030.0,0.65683828]
[1760023970061,0.01775226,121040.0,121030.0,0.42019828]
[1760023970261,0.01775226,121040.0,121030.0,0.65675828]
[1760023971073,0.04365226,121040.0,121030.0,0.65675828]
[1760023971826,0.04365226,121040.0,121030.0,0.42019828]
[1760023972131,0.04365226,121040.0,121030.0,0.65667828]
[1760023972568,0.0259,121040.0,121030.0,0.65667828]
[1760023972776,0.55540595,121050.0,121030.0,0.65667828]
[1760023972984,0.0259,121040.0,121030.0,0.57915828]
[1760023973199,0.0259,121040.0,121030.0,0.65667828]
[1760023973441,0.1417,121040.0,121030.0,0.65667828]
[1760023974123,0.14431,121040.0,121030.0,0.57915828]
[1760023974421,0.1417,121040.0,121030.0,0.65667828]
[1760023975302,0.1158,121040.0,121030.0,0.42019828]
[1760023976158,0.1158,121040.0,121030.0,0.33427828]
[1760023976359,0.1158,121040.0,121030.0,0.65655828]
[1760023976569,0.14299,121040.0,121030.0,0.57903828]
[1760023976769,0.13985,121040.0,121030.0,0.65655828]
[1760023976985,0.1158,121040.0,121030.0,0.65655828]
[1760023979318,0.1158,121040.0,121030.0,0.65647828]
[1760023979962,0.1158,121040.0,121030.0,0.33427828]
[1760023980195,0.1158,121040.0,121030.0,0.65647828]
[1760023980861,0.1158,121040.0,121030.0,0.42019828]
[1760023981290,0.1158,121040.0,121030.0,0.65639828]
[1760023984550,0.1158,121040.0,121030.0,0.33427828]
[1760023984760,0.14322,121040.0,121030.0,0.25675828]
[1760023985011,0.14322,121040.0,121030.0,0.57875828]
[1760023985447,0.14194,121040.0,121030.0,0.65627828]
[1760023986633,0.14401,121040.0,121030.0,0.57875828]
[1760023986842,0.14194,121040.0,121030.0,0.65627828]
[1760023987485,0.1158,121040.0,121030.0,0.65627828]
[1760023987706,0.1158,121040.0,121030.0,0.73940034]
[1760023989607,0.1158,121040.0,121030.0,0.74040034]
[1760023990009,0.1158,121040.0,121030.0,0.74140034]
[1760023990140,0.1158,121040.0,121030.0,0.74040034]
[1760023990566,0.1158,121040.0,121030.0,0.74140034]
[1760023990960,0.1158,121040.0,121030.0,0.50532034]
[1760023991167,0.1158,121040.0,121030.0,0.74144034]
[1760023992416,0.1158,121040.0,121030.0,0.41940034]
[1760023992614,0.1158,121040.0,121030.0,0.74140034]
[1760023992817,0.1158,121040.0,121030.0,0.87547224]
[1760023993276,0.1158,121040.0,121030.0,1.11159224]
[1760023994106,0.1158,121040.0,121030.0,0.78955224]
[1760023994313,0.1158,121040.0,121030.0,1.45527224]
[1760023995792,0.1158,121040.0,121030.0,1.45488702]
[1760023995985,0.00176333,121050.0,121040.0,0.16523463]
[1760023996190,0.00176333,121050.0,121040.0,0.28741669]
[1760023996391,0.00176333,121050.0,121040.0,0.41677669]
[1760023996846,0.00176333,121050.0,121040.0,0.45070241]
[1760023997741,0.00176333,121050.0,121040.0,0.41677669]
[1760023998173,0.00176333,121050.0,121040.0,0.65297669]
[1760023998824,0.00176333,121050.0,121040.0,0.65397669]
[1760023999238,0.00176333,121050.0,121040.0,0.65297669]
[1760023999661,0.00176333,121050.0,121040.0,0.65497669]
[1760024000078,0.00176333,121050.0,121040.0,0.41877669]
[1760024000293,0.00176333,121050.0,121040.0,0.74081669]
[1760024000758,0.00176333,121050.0,121040.0,0.73981669]
[1760024001255,0.00176333,121050.0,121040.0,0.65389669]
[1760024001523,0.00176333,121050.0,121040.0,0.73977669]
[1760024001951,0.00176333,121050.0,121040.0,0.74077669]
[1760024002410,0.00176333,121050.0,121040.0,0.73977669]
[1760024003330,0.00176333,121050.0,121040.0,0.74077669]
[1760024003577,0.00176333,121050.0,121040.0,0.41877669]
[1760024003807,0.00176333,121050.0,121040.0,0.74069669]
[1760024005912,0.00176333,121050.0,121040.0,0.7374557]
[1760024006341,0.00176333,121050.0,121040.0,1.2374557]
[1760024006572,0.00176333,121050.0,121040.0,1.25577786]
[1760024006791,0.00176333,121050.0,121040.0,1.2374557]
[1760024011279,0.25326147,121070.0,121060.0,0.16520733]
[1760024011493,0.41358155,121070.0,121060.0,0.49116733]
[1760024011695,0.42917155,121070.0,121060.0,0.25512733]
[1760024011906,0.02652716,121070.0,121060.0,0.57704733]
[1760024012025,0.43020495,121070.0,121060.0,0.57704733]
[1760024012506,0.45916174,121070.0,121060.0,0.25512733]
[1760024012727,0.45916174,121070.0,121060.0,0.16520733]
[1760024012988,0.45916174,121070.0,121060.0,0.08588]
[1760024012989,1.03847542,121070.0,121060.0,0.08588]
[1760024013198,0.50521954,121060.0,121040.0,0.75111463]
[1760024013403,0.42943779,121050.0,121040.0,0.75111463]
[1760024013581,0.51332779,121050.0,121040.0,0.5]
[1760024013820,0.51332779,121050.0,121040.0,0.75111463]
[1760024014230,0.51332779,121050.0,121040.0,0.98715463]
[1760024015262,0.51332779,121050.0,121040.0,0.90127463]
[1760024015503,0.51332779,121050.0,121040.0,0.98715463]
[1760024015711,0.43989779,121050.0,121040.0,0.98715463]
[1760024015916,0.51332779,121050.0,121040.0,0.98630958]
[1760024016154,0.67854877,121050.0,121040.0,0.49915495]
[1760024016377,1.50222336,121050.0,121040.0,0.49915495]
[1760024016841,1.09854557,121050.0,121040.0,0.49915495]
[1760024017050,1.09854557,121050.0,121040.0,0.73519495]
[1760024017712,1.09854557,121050.0,121040.0,0.49915495]
[1760024017925,1.09854557,121050.0,121040.0,0.73519495]
[1760024018379,0.37622,121050.0,121040.0,0.95128958]
[1760024018625,0.78052779,121050.0,121040.0,0.90042958]
[1760024019076,0.94574877,121050.0,121040.0,0.90042958]
[1760024019299,0.78052779,121050.0,121040.0,0.95128958]
[1760024019539,0.94574877,121050.0,121040.0,0.73519495]
[1760024019782,1.01854877,121050.0,121040.0,0.73519495]
[1760024020004,0.61487098,121050.0,121040.0,0.73519495]
[1760024020234,1.01854877,121050.0,121040.0,0.73519495]
[1760024021627,0.94574877,121050.0,121040.0,0.90042958]
[1760024021847,1.01854877,121050.0,121040.0,0.90042958]
[1760024022259,1.01854877,121050.0,121040.0,0.73519495]
[1760024022482,1.01854877,121050.0,121040.0,0.90042958]
[1760024022755,0.85332779,121050.0,121040.0,0.90042958]
[1760024022964,0.37685,121050.0,121040.0,0.95320958]
[1760024023218,0.00051674,121060.0,121050.0,0.16522098]
[1760024023437,0.00051674,121060.0,121050.0,0.42005098]
[1760024023663,0.00051674,121060.0,121050.0,0.65609098]
[1760024023880,0.43226453,121060.0,121050.0,0.58028098]
[1760024025341,0.43226453,121060.0,121050.0,0.25832098]
[1760024025594,0.16522098,121050.0,121040.0,0.61528495]
[1760024025845,0.67920877,121050.0,121040.0,0.49915495]
[1760024026064,0.67920877,121050.0,121040.0,0.73519495]
[1760024026492,0.67920877,121050.0,121040.0,0.49915495]
[1760024026675,1.01920877,121050.0,121040.0,0.49915495]
[1760024026916,1.09920557,121050.0,121040.0,0.73519495]
[1760024027168,1.18232763,121050.0,121040.0,0.49915495]
[1760024027377,1.18232763,121050.0,121040.0,0.73519495]
[1760024027566,1.20012374,121050.0,121040.0,0.73519495]
[1760024027817,1.20012374,121050.0,121040.0,0.49915495]
[1760024028000,1.20012374,121050.0,121040.0,0.73519495]
[1760024028535,1.20112374,121050.0,121040.0,0.49915495]
[1760024028751,1.20112374,121050.0,121040.0,0.73519495]
[1760024028976,1.20212374,121050.0,121040.0,0.49915495]
[1760024029194,1.20212374,121050.0,121040.0,0.73519495]
[1760024029418,1.20212374,121050.0,121040.0,0.49915495]
[1760024029597,1.18432763,121050.0,121040.0,0.49915495]
[1760024029833,1.209137,121050.0,121040.0,0.73519495]
[1760024030051,1.209137,121050.0,121040.0,0.49915495]
[1760024030242,1.209137,121050.0,121040.0,0.73519495]
[1760024031510,0.80545921,121050.0,121040.0,0.73519495]
[1760024031712,1.209137,121050.0,121040.0,0.73519495]
[1760024032003,0.80545921,121050.0,121040.0,0.73519495]
[1760024032200,1.1291402,121050.0,121040.0,0.73519495]
[1760024033605,0.72546241,121050.0,121040.0,0.73519495]
[1760024033834,1.1291402,121050.0,121040.0,0.73519495]
[1760024035053,1.1291402,121050.0,121040.0,0.49915495]
[1760024035299,1.209137,121050.0,121040.0,0.73523495]
[1760024036126,1.1291402,121050.0,121040.0,0.734098]
[1760024038363,1.14693384,121050.0,121040.0,0.734098]
[1760024038576,1.1291402,121050.0,121040.0,0.498018]
[1760024038792,1.1291402,121050.0,121040.0,0.734098]
[1760024039004,1.14693528,121050.0,121040.0,0.498018]
[1760024039218,1.22693208,121050.0,121040.0,0.734058]
[1760024039430,1.22693208,121050.0,121040.0,0.498018]
[1760024039647,1.22693208,121050.0,121040.0,0.734098]
[1760024040353,1.22693208,121050.0,121040.0,0.498018]
[1760024040581,1.22693208,121050.0,121040.0,0.734058]
[1760024040845,0.82325429,121050.0,121040.0,0.734058]
[1760024041094,1.22693208,121050.0,121040.0,0.734058]
[1760024041353,1.14693528,121050.0,121040.0,0.734058]
[1760024042011,1.14693528,121050.0,121040.0,0.498018]
[1760024042242,1.34892141,121050.0,121040.0,0.734058]
[1760024043518,0.74325749,121050.0,121040.0,0.734058]
[1760024043766,1.34892141,121050.0,121040.0,0.734058]
[1760024043938,1.42891821,121050.0,121040.0,0.734058]
[1760024044217,1.87071821,121050.0,121040.0,0.734058]
[1760024044840,1.87074168,121050.0,121040.0,0.734058]
[1760024045910,1.87074168,121050.0,121040.0,0.498018]
[1760024046149,1.87074168,121050.0,121040.0,0.734058]
[1760024046426,1.87074168,121050.0,121040.0,0.498018]
[1760024046618,1.73177364,121050.0,121040.0,0.498018]
[1760024046793,1.96781364,121050.0,121040.0,0.498018]
[1760024046996,1.99008682,121050.0,121040.0,0.498018]
[1760024047434,2.01975987,121050.0,121040.0,0.498018]
[1760024047548,1.78371987,121050.0,121040.0,0.498018]
[1760024047756,2.0352301,121050.0,121040.0,0.498018]
[1760024047969,2.01295701,121050.0,121040.0,0.498018]
[1760024048209,1.99748669,121050.0,121040.0,0.498018]
[1760024048391,2.01295335,121050.0,121040.0,0.498018]
[1760024048842,1.77691335,121050.0,121040.0,0.498018]
[1760024049052,2.7966594,121050.0,121040.0,0.0342353]
[1760024049282,2.89665939,121050.0,121040.0,1e-08]
[1760024049498,3.13269939,121050.0,121040.0,1e-08]
[1760024049733,1.28297406,121050.0,121040.0,1e-08]
[1760024049968,2.21646993,121050.0,121040.0,1e-08]
[1760024050175,2.21546993,121050.0,121040.0,1e-08]
[1760024050390,2.22619914,121050.0,121040.0,1e-08]
[1760024050830,1.99015914,121050.0,121040.0,1e-08]
[1760024051064,2.22523914,121050.0,121040.0,1e-08]
[1760024051489,2.22823914,121050.0,121040.0,1e-08]
[1760024051704,2.22523914,121050.0,121040.0,1e-08]
[1760024051915,1.98615914,121050.0,121040.0,1e-08]
[1760024052345,0.50543996,121040.0,121030.0,0.00138083]
[1760024052580,1.87280991,121040.0,121030.0,0.00138083]
[1760024052778,1.98282991,121040.0,121030.0,0.00138083]
[1760024052994,1.77156441,121040.0,121030.0,0.00138083]
[1760024053222,2.00764441,121040.0,121030.0,0.00138083]
[1760024053447,1.77156441,121040.0,121030.0,0.00138083]
[1760024053669,1.77256441,121040.0,121030.0,0.00138083]
[1760024053888,2.00864441,121040.0,121030.0,0.00138083]
[1760024054100,1.77256441,121040.0,121030.0,0.00138083]
[1760024054323,2.00864441,121040.0,121030.0,0.00138083]
[1760024054540,1.77356441,121040.0,121030.0,0.00138083]
[1760024054775,2.00964441,121040.0,121030.0,0.00138083]
[1760024055444,1.77356441,121040.0,121030.0,0.00138083]
[1760024055646,2.00964441,121040.0,121030.0,0.00138083]
[1760024059186,2.03191406,121040.0,121030.0,0.00138083]
[1760024059422,2.06158711,121040.0,121030.0,0.00138083]
[1760024059652,1.15309123,121040.0,121030.0,0.00138083]
[1760024059880,2.03191406,121040.0,121030.0,0.00138083]
[1760024060763,2.03187825,121040.0,121030.0,0.00138083]
[1760024062362,1.79579825,121040.0,121030.0,0.00138083]
[1760024062581,0.12511089,121040.0,121030.0,0.25906911]
[1760024062809,0.04639639,121040.0,121030.0,0.25906911]
[1760024063026,0.32283835,121040.0,121030.0,0.56952911]
[1760024063244,0.64503729,121040.0,121030.0,0.56952911]
[1760024063456,0.98196925,121040.0,121030.0,0.25906911]
[1760024063661,0.81904525,121040.0,121030.0,0.25254911]
[1760024063871,1.15804525,121040.0,121030.0,0.48862911]
[1760024064090,1.07876525,121040.0,121030.0,0.34498911]
[1760024064299,1.07876525,121040.0,121030.0,0.58106911]
[1760024064300,1.06096605,121040.0,121030.0,0.58106911]
[1760024064505,1.05996605,121040.0,121030.0,0.58106911]
[1760024064920,0.75713409,121040.0,121030.0,0.58106911]
[1760024065336,0.75713409,121040.0,121030.0,0.48862911]
[1760024065555,1.05996605,121040.0,121030.0,0.48858911]
[1760024065769,1.05996605,121040.0,121030.0,0.54067911]
[1760024066455,1.05996605,121040.0,121030.0,0.48858911]
[1760024066664,0.45430213,121040.0,121030.0,0.54067911]
[1760024066879,0.97996925,121040.0,121030.0,0.58102911]
[1760024067557,0.67713729,121040.0,121030.0,0.58102911]
[1760024067808,0.84237192,121040.0,121030.0,0.48858911]
[1760024068025,0.97996925,121040.0,121030.0,0.00138083]
[1760024068251,1.60731264,121040.0,121030.0,0.00138083]
[1760024068468,1.70823731,121040.0,121030.0,0.00138083]
[1760024068701,1.40540535,121040.0,121030.0,0.00138083]
[1760024068920,1.43021718,121040.0,121030.0,0.00138083]
[1760024069131,1.66625718,121040.0,121030.0,0.00138083]
[1760024069345,1.04279065,121040.0,121030.0,0.00138083]
[1760024069593,1.41241457,121040.0,121030.0,0.00138083]
[1760024069812,1.64845457,121040.0,121030.0,0.00138083]
[1760024070270,1.66625824,121040.0,121030.0,0.00138083]
[1760024070487,1.41241457,121040.0,121030.0,0.00138083]
[1760024071344,0.47911396,121040.0,121030.0,0.21871911]
[1760024071582,0.32924729,121040.0,121030.0,0.56948911]
[1760024071768,0.66924729,121040.0,121030.0,0.56948911]
[1760024071992,0.67731729,121040.0,121030.0,0.16662911]
[1760024072154,0.67731729,121040.0,121030.0,0.40266911]
[1760024072367,0.45448213,121040.0,121030.0,0.45475911]
[1760024072580,0.67731729,121040.0,121030.0,0.49510911]
[1760024073531,0.84255192,121040.0,121030.0,0.25906911]
[1760024073750,0.84255192,121040.0,121030.0,0.44301911]
[1760024074236,1.14538388,121040.0,121030.0,0.44301911]
[1760024074453,1.30447068,121040.0,121030.0,0.40266911]
[1760024074669,1.30447068,121040.0,121030.0,0.00138083]
[1760024074876,1.6904247,121040.0,121030.0,0.00138083]
[1760024075096,1.70823237,121040.0,121030.0,0.00138083]
[1760024075320,1.94427237,121040.0,121030.0,0.00138083]
[1760024075747,1.70823237,121040.0,121030.0,0.00138083]
[1760024075968,2.63897958,121040.0,121030.0,0.00138083]
[1760024076193,2.90001957,121040.0,121030.0,0.00138083]
[1760024076414,2.99470762,121040.0,121030.0,0.00138083]
[1760024077074,3.61465049,121040.0,121030.0,1e-08]
[1760024077296,3.86129985,121040.0,121030.0,1e-08]
[1760024077510,0.80810755,121010.0,121000.0,0.44167248]
[1760024077724,1.84471033,121010.0,121000.0,0.44167248]
[1760024077945,1.85349033,121010.0,121000.0,0.44167248]
[1760024078149,1.4538138,121010.0,121000.0,0.44167248]
[1760024078360,1.47863485,121010.0,121000.0,0.44167248]
[1760024078785,1.49749041,121010.0,121000.0,0.44167248]
[1760024079038,1.69202976,121010.0,121000.0,0.44167248]
[1760024079263,1.69202976,121010.0,120980.0,0.0001]
[1760024079264,0.50530291,120990.0,120980.0,0.0001]
[1760024079468,1.11504577,120990.0,120980.0,0.0001]
[1760024079691,1.52256577,120990.0,120980.0,0.0001]